fUSD/lending_fUSD_20251120
["ID","MTS","AMOUNT","RATE_DAILY","PERIOD"]
[394469490,1763614146136,500.0,0.00042068,120]
[394469491,1763614146542,500.0,0.00042068,120]
[394469492,1763614146770,597.5673663,0.00042068,120]
[394469493,1763614150126,500.0,0.00042068,120]
[394469494,1763614150371,500.0,0.00042068,120]
[394469495,1763614150695,500.0,0.00042068,120]
[394469496,1763614150924,500.0,0.00042068,120]
[394469497,1763614151269,351.97626613,0.00042068,120]
[394469498,1763614154336,518.4656623,0.00042068,120]
[394469499,1763614157473,500.0,0.00042068,120]
[394469500,1763614157705,500.0,0.00042068,120]
[394469501,1763614157952,522.37758241,0.00042068,120]
[394469502,1763614159401,500.0,0.00042068,120]
[394469503,1763614159661,500.0,0.00042068,120]
[394469504,1763614159927,500.0,0.00042068,120]
[394469505,1763614160164,500.0,0.00042068,120]
[394469508,1763614169364,510.45067395,0.00042068,120]
[394469510,1763614171644,500.0,0.00042068,120]
[394469511,1763614171891,570.55348175,0.00042068,120]
[394469512,1763614172459,500.0,0.00042068,120]
[394469513,1763614172698,500.0,0.00042068,120]
[394469514,1763614172980,500.0,0.00042068,120]
[394469515,1763614173189,500.0,0.00042068,120]
[394469516,1763614173841,537.90756915,0.00042068,120]
[394469517,1763614174280,500.0,0.00042068,120]
[394469518,1763614174518,549.24696348,0.00042068,120]
[394469519,1763614177371,500.0,0.00042068,120]
[394469521,1763614177615,500.0,0.00042068,120]
[394469522,1763614177875,533.61981393,0.00042068,120]
[394469523,1763614179198,500.0,0.00042068,120]
[394469524,1763614179483,564.4,0.00042068,120]
[394469525,1763614180531,200.0,0.000169,6]
[394469526,1763614182605,500.0,0.000172,6]
[394469527,1763614184696,800.0,0.000173,6]
[394469528,1763614186398,500.0,0.00042068,120]
[394469529,1763614186626,500.0,0.00042068,120]
[394469530,1763614186781,1100.0,0.000174,6]
[394469531,1763614186868,516.71348157,0.00042068,120]
[394469534,1763614206745,500.0,0.00042068,120]
[394469535,1763614206990,516.64028746,0.00042068,120]
[394469536,1763614213325,500.0,0.00042068,120]
[394469537,1763614213530,500.0,0.00042068,120]
[394469538,1763614215290,189.68124586,0.00042068,120]
[394469539,1763614217378,500.0,0.00042068,120]
[394469540,1763614217785,533.39327774,0.00042068,120]
[394469541,1763614221943,445.2722461,0.00042068,120]
[394469542,1763614228233,507.28077987,0.00042068,120]
[394469547,1763614231888,-383.13,0.00016466,2]
[394469548,1763614231898,-373.29,0.00016468,2]
[394469549,1763614231908,-595.15,0.00016492,2]
[394469550,1763614231917,-1000.0,0.00016645,2]
[394469551,1763614231929,-300.0,0.00016732,2]
[394469552,1763614231939,-300.0,0.00016732,2]
[394469553,1763614231948,-1200.0,0.00016732,2]
[394469554,1763614231958,-634.03278128,0.00016732,2]
[394469555,1763614231967,-1000.0,0.00016733,2]
[394469556,1763614231977,-2500.0,0.00016733,2]
[394469557,1763614231986,-73681.656482,0.00016733,2]
[394469558,1763614231997,-38539.11288989,0.00016733,2]
[394469559,1763614232009,-89645.28187362,0.00016733,2]
[394469560,1763614232020,-6279.90789427,0.00016733,2]
[394469561,1763614232031,-14086.07818904,0.00016733,2]
[394469562,1763614232043,-121897.09306442,0.00016733,2]
[394469567,1763614232327,500.0,0.00042068,120]
[394469568,1763614232555,500.0,0.00042068,120]
[394469569,1763614232780,500.0,0.00042068,120]
[394469570,1763614233013,500.0,0.00042068,120]
[394469571,1763614233247,542.44054951,0.00042068,120]
[394469572,1763614237808,-297469.19882598,0.00016733,2]
[394469573,1763614237894,-4749.8434457,0.00016733,2]
[394469574,1763614237905,-468.3752044,0.00016733,2]
[394469575,1763614237950,-113183.45213068,0.00016733,2]
[394469576,1763614237959,-11148.82088091,0.00016767,2]
[394469577,1763614237970,-5639.64690915,0.00016773,2]
[394469578,1763614237979,-625.16698779,0.00016773,2]
[394469579,1763614237988,-254.29102962,0.00016773,2]
[394469580,1763614237998,-171.68977967,0.00016773,2]
[394469581,1763614238007,-151.0,0.00016829,2]
[394469582,1763614238016,-1036.23,0.00016831,2]
[394469583,1763614238025,-171.25,0.00016831,2]
[394469584,1763614238035,-550.0,0.00016831,2]
[394469585,1763614238044,-204.96343366,0.00016832,2]
[394469586,1763614238054,-500.0,0.00016832,2]
[394469587,1763614238063,-500.0,0.00016832,2]
[394469588,1763614238072,-500.0,0.00016832,2]
[394469589,1763614238082,-500.0,0.00016832,2]
[394469590,1763614238091,-500.0,0.00016832,2]
[394469591,1763614238100,-500.0,0.00016832,2]
[394469592,1763614238109,-500.0,0.00016832,2]
[394469593,1763614238120,-500.0,0.00016832,2]
[394469594,1763614238129,-500.0,0.00016832,2]
[394469595,1763614238139,-500.0,0.00016832,2]
[394469596,1763614238148,-500.0,0.00016832,2]
[394469597,1763614238158,-500.0,0.00016832,2]
[394469598,1763614238167,-500.0,0.00016832,2]
[394469599,1763614238177,-619.8993045,0.00016832,2]
[394469600,1763614238187,-500.0,0.00016832,2]
[394469601,1763614238197,-500.0,0.00016832,2]
[394469602,1763614238206,-500.0,0.00016832,2]
[394469603,1763614238215,-500.0,0.00016832,2]
[394469604,1763614238225,-500.0,0.00016832,2]
[394469605,1763614238234,-500.0,0.00016832,2]
[394469606,1763614238244,-500.0,0.00016832,2]
[394469607,1763614238253,-500.0,0.00016832,2]
[394469608,1763614238263,-500.0,0.00016832,2]
[394469609,1763614238272,-500.0,0.00016832,2]
[394469610,1763614238282,-201.55596804,0.00016832,2]
[394469611,1763614238292,-524.05640808,0.00016832,2]
[394469612,1763614238301,-500.0,0.00016832,2]
[394469613,1763614238310,-500.0,0.00016832,2]
[394469614,1763614238319,-500.0,0.00016832,2]
[394469615,1763614238328,-500.0,0.00016832,2]
[394469616,1763614238338,-500.0,0.00016832,2]
[394469617,1763614238347,-650.0,0.00016832,2]
[394469618,1763614238356,-500.0,0.00016832,2]
[394469619,1763614238365,-150.78430682,0.00016832,2]
[394469620,1763614238374,-500.0,0.00016832,2]
[394469621,1763614238383,-500.0,0.00016832,2]
[394469622,1763614238392,-500.0,0.00016832,2]
[394469623,1763614238401,-271.60228025,0.00016832,2]
[394469624,1763614238410,-500.0,0.00016832,2]
[394469625,1763614238420,-500.0,0.00016832,2]
[394469626,1763614238429,-500.0,0.00016832,2]
[394469627,1763614238438,-500.0,0.00016832,2]
[394469628,1763614238447,-500.0,0.00016832,2]
[394469629,1763614238457,-466.58455535,0.00016832,2]
[394469630,1763614238467,-500.0,0.00016832,2]
[394469631,1763614238476,-201.09492299,0.00016832,2]
[394469632,1763614238486,-501.79448901,0.00016832,2]
[394469633,1763614238495,-434.27007163,0.00016832,2]
[394469634,1763614238505,-500.0,0.00016832,2]
[394469635,1763614238514,-500.0,0.00016832,2]
[394469636,1763614238524,-500.0,0.00016832,2]
[394469637,1763614238533,-500.0,0.00016832,2]
[394469638,1763614238543,-206.81382043,0.00016832,2]
[394469639,1763614238553,-500.0,0.00016832,2]
[394469640,1763614238562,-227.41987588,0.00016832,2]
[394469641,1763614238572,-500.0,0.00016832,2]
[394469642,1763614238581,-179.16987653,0.00016832,2]
[394469643,1763614238590,-194.44784813,0.00016832,2]
[394469644,1763614238599,-500.0,0.00016832,2]
[394469645,1763614238608,-500.0,0.00016832,2]
[394469646,1763614238618,-630.79318049,0.00016832,2]
[394469647,1763614238631,-710.24,0.00016832,2]
[394469648,1763614238640,-710.24,0.00016832,2]
[394469649,1763614238649,-710.24,0.00016832,2]
[394469650,1763614238658,-500.0,0.00016832,2]
[394469651,1763614238667,-500.0,0.00016832,2]
[394469652,1763614238676,-500.0,0.00016832,2]
[394469653,1763614238685,-500.0,0.00016832,2]
[394469654,1763614238695,-500.0,0.00016832,2]
[394469655,1763614238705,-500.0,0.00016832,2]
[394469656,1763614238716,-1665.69,0.00016832,2]
[394469657,1763614238726,-500.0,0.00016873,2]
[394469658,1763614238735,-500.0,0.00016873,2]
[394469659,1763614238745,-500.0,0.00016873,2]
[394469660,1763614238755,-500.60626497,0.00016873,2]
[394469661,1763614238764,-511.48237159,0.00016873,2]
[394469662,1763614238774,-500.0,0.00016873,2]
[394469663,1763614238784,-500.0,0.00016873,2]
[394469664,1763614238794,-1000.0,0.00016884,2]
[394469665,1763614238966,-11148.82088085,0.00016893,2]
[394469666,1763614238977,-5639.6469091,0.00016898,2]
[394469667,1763614238987,-625.16698772,0.00016898,2]
[394469668,1763614238998,-500.0,0.000169,2]
[394469669,1763614239007,-218.67400939,0.00016924,2]
[394469670,1763614239017,-500.0,0.00016928,2]
[394469671,1763614239027,-254.29102955,0.00016934,2]
[394469672,1763614239036,-595.15,0.00016938,2]
[394469673,1763614239046,-500.0,0.00016955,2]
[394469674,1763614239056,-500.0,0.00016955,2]
[394469675,1763614239065,-1178.37908504,0.00016976,2]
[394469676,1763614239075,-500.0,0.00016983,2]
[394469677,1763614239084,-500.0,0.00016983,2]
[394469678,1763614239093,-315.08513889,0.00016984,2]
[394469679,1763614239102,-250.0,0.00017,2]
[394469680,1763614239112,-500.0,0.0001701,2]
[394469681,1763614239121,-500.0,0.0001701,2]
[394469682,1763614239130,-500.0,0.0001701,2]
[394469683,1763614239139,-11148.82088085,0.00017019,2]
[394469684,1763614239149,-5639.6469091,0.00017023,2]
[394469685,1763614239159,-625.16698772,0.00017023,2]
[394469686,1763614239168,-500.0,0.00017037,2]
[394469687,1763614239177,-500.0,0.00017037,2]
[394469688,1763614239186,-500.0,0.00017037,2]
[394469689,1763614239196,-500.0,0.00017065,2]
[394469690,1763614239206,-500.0,0.00017065,2]
[394469691,1763614239215,-272.04463779,0.00017092,2]
[394469692,1763614239224,-500.0,0.00017092,2]
[394469693,1763614239233,-254.29102955,0.00017095,2]
[394469694,1763614239243,-1665.69,0.00017106,2]
[394469695,1763614239252,-500.0,0.0001712,2]
[394469696,1763614239261,-11148.82088085,0.00017145,2]
[394469697,1763614239271,-500.0,0.00017147,2]
[394469698,1763614239280,-5639.6469091,0.00017149,2]
[394469699,1763614239289,-625.16698772,0.00017149,2]
[394469700,1763614239298,-500.0,0.00017174,2]
[394469701,1763614239308,-458.96907407,0.00017202,2]
[394469702,1763614239317,-500.0,0.00017202,2]
[394469703,1763614239326,-230.52,0.00017204,2]
[394469704,1763614239335,-500.0,0.00017229,2]
[394469705,1763614239344,-254.29102955,0.00017256,2]
[394469706,1763614239354,-611.64325893,0.00017257,2]
[394469707,1763614239364,-11148.82088085,0.00017271,2]
[394469708,1763614239373,-5639.6469091,0.00017274,2]
[394469709,1763614239383,-625.16698772,0.00017274,2]
[394469710,1763614239392,-300.0,0.00017367,2]
[394469711,1763614239402,-204.35919897,0.00017375,2]
[394469712,1763614239411,-500.0,0.00017375,2]
[394469713,1763614239420,-500.0,0.00017375,2]
[394469714,1763614239430,-150.0,0.00017375,2]
[394469715,1763614239439,-500.0,0.00017375,2]
[394469716,1763614239448,-500.0,0.00017375,2]
[394469717,1763614239457,-500.0,0.00017375,2]
[394469718,1763614239466,-500.0,0.00017375,2]
[394469719,1763614239475,-500.0,0.00017375,2]
[394469720,1763614239485,-150.0,0.00017375,2]
[394469721,1763614239494,-500.0,0.00017375,2]
[394469722,1763614239504,-150.0,0.00017375,2]
[394469723,1763614239513,-150.0,0.00017375,2]
[394469724,1763614239523,-500.0,0.00017375,2]
[394469725,1763614239532,-500.0,0.00017375,2]
[394469726,1763614239542,-500.0,0.00017375,2]
[394469727,1763614239552,-500.0,0.00017375,2]
[394469728,1763614239561,-500.0,0.00017375,2]
[394469729,1763614239571,-438.44355764,0.00017375,2]
[394469730,1763614239580,-500.0,0.00017375,2]
[394469731,1763614239590,-500.0,0.00017375,2]
[394469732,1763614239599,-500.0,0.00017375,2]
[394469733,1763614239608,-150.0,0.00017375,2]
[394469734,1763614239617,-500.0,0.00017375,2]
[394469735,1763614239627,-159.43,0.00017375,2]
[394469736,1763614239637,-1665.69,0.0001738,2]
[394469737,1763614239647,-11148.82088085,0.00017396,2]
[394469738,1763614239656,-5639.6469091,0.00017399,2]
[394469739,1763614239666,-625.16698772,0.00017399,2]
[394469740,1763614239675,-500.0,0.00017402,2]
[394469741,1763614239684,-500.0,0.00017402,2]
[394469742,1763614239694,-150.0,0.00017402,2]
[394469743,1763614239702,-500.0,0.00017402,2]
[394469744,1763614239711,-500.0,0.00017402,2]
[394469745,1763614239721,-500.0,0.00017402,2]
[394469746,1763614239730,-500.0,0.00017402,2]
[394469747,1763614239739,-500.0,0.00017402,2]
[394469748,1763614239748,-150.0,0.00017402,2]
[394469749,1763614239758,-500.0,0.00017402,2]
[394469750,1763614239767,-218.12232883,0.00017402,2]
[394469751,1763614239777,-150.0,0.00017402,2]
[394469752,1763614239787,-500.0,0.00017402,2]
[394469753,1763614239797,-500.0,0.00017402,2]
[394469754,1763614239807,-500.0,0.00017402,2]
[394469755,1763614239816,-150.0,0.00017402,2]
[394469756,1763614239825,-500.0,0.00017402,2]
[394469757,1763614239835,-254.29102955,0.00017417,2]
[394469758,1763614239844,-1000.0,0.00017421,2]
[394469759,1763614239854,-1000.0,0.00017421,2]
[394469760,1763614239863,-500.0,0.0001743,2]
[394469761,1763614239873,-360.15703236,0.0001743,2]
[394469762,1763614239889,-150.0,0.0001743,2]
[394469763,1763614239899,-216.44084954,0.0001743,2]
[394469764,1763614239909,-500.0,0.0001743,2]
[394469765,1763614239919,-500.0,0.0001743,2]
[394469766,1763614239930,-500.0,0.0001743,2]
[394469767,1763614239939,-500.0,0.0001743,2]
[394469768,1763614239949,-150.0,0.0001743,2]
[394469770,1763614239959,-500.0,0.0001743,2]
[394469772,1763614239968,-165.80212459,0.0001743,2]
[394469774,1763614239978,-454.41316794,0.0001743,2]
[394469776,1763614239988,-500.0,0.0001743,2]
[394469778,1763614239997,-500.0,0.0001743,2]
[394469780,1763614240006,-150.0,0.0001743,2]
[394469782,1763614240016,-500.0,0.0001743,2]
[394469784,1763614240025,-602.90896659,0.00017457,2]
[394469786,1763614240034,-154.66376572,0.00017457,2]
[394469788,1763614240045,-500.0,0.00017457,2]
[394469790,1763614240054,-500.0,0.00017457,2]
[394469791,1763614240063,-500.0,0.00017457,2]
[394469793,1763614240073,-419.39129392,0.00017457,2]
[394469795,1763614240082,-150.0,0.00017457,2]
[394469798,1763614240094,-500.0,0.00017457,2]
[394469800,1763614240104,-500.0,0.00017457,2]
[394469802,1763614240114,-204.42568099,0.00017457,2]
[394469804,1763614240123,-500.0,0.00017457,2]
[394469806,1763614240132,-500.0,0.00017485,2]
[394469807,1763614240141,-500.0,0.00017485,2]
[394469808,1763614240152,-500.0,0.00017485,2]
[394469809,1763614240160,-155.09276984,0.00017485,2]
[394469810,1763614240170,-500.0,0.00017485,2]
[394469811,1763614240179,-500.0,0.00017485,2]
[394469812,1763614240188,-500.0,0.00017485,2]
[394469813,1763614240198,-1400.0,0.000175,6]
[394469814,1763614240207,-1300.0,0.000175,6]
[394469815,1763614240216,-500.0,0.00017512,2]
[394469816,1763614240225,-500.0,0.00017512,2]
[394469817,1763614240234,-500.0,0.00017512,2]
[394469818,1763614240243,-500.0,0.00017512,2]
[394469819,1763614240252,-11148.82088085,0.00017522,2]
[394469820,1763614240262,-5639.6469091,0.00017524,2]
[394469821,1763614240271,-625.16698772,0.00017524,2]
[394469822,1763614240280,-999.0,0.00017526,3]
[394469823,1763614240293,-500.0,0.00017539,2]
[394469824,1763614240302,-500.0,0.00017539,2]
[394469825,1763614240311,-500.0,0.00017539,2]
[394469826,1763614240320,-186.51122994,0.00017539,2]
[394469827,1763614240330,-215.13477291,0.00017558,2]
[394469828,1763614240339,-500.0,0.00017567,2]
[394469829,1763614240349,-500.0,0.00017567,2]
[394469830,1763614240358,-500.0,0.00017567,2]
[394469831,1763614240367,-254.29102955,0.00017578,2]
[394469832,1763614240377,-500.0,0.00017594,2]
[394469833,1763614240387,-500.0,0.00017594,2]
[394469834,1763614240396,-500.0,0.00017594,2]
[394469835,1763614240405,-500.0,0.00017594,2]
[394469836,1763614240416,-1319.0,0.00017595,2]
[394469837,1763614240425,-575.0,0.00017595,2]
[394469838,1763614240434,-609.784,0.00017595,2]
[394469839,1763614240443,-3434.0,0.00017595,2]
[394469840,1763614240453,-822.0,0.00017595,2]
[394469841,1763614240462,-1601.547,0.00017595,2]
[394469842,1763614240471,-930.251,0.00017595,2]
[394469843,1763614240479,-1220.186,0.00017595,2]
[394469844,1763614240491,-798.021,0.00017595,2]
[394469845,1763614240501,-1256.0,0.00017595,2]
[394469846,1763614240510,-1605.0,0.00017595,2]
[394469847,1763614240519,-708.819,0.00017595,2]
[394469848,1763614240527,-150.0,0.00017595,2]
[394469849,1763614240537,-150.0,0.00017595,2]
[394469850,1763614240546,-150.0,0.00017595,2]
[394469851,1763614240555,-500.0,0.00017595,2]
[394469852,1763614240564,-150.0,0.00017595,2]
[394469853,1763614240573,-500.0,0.00017595,2]
[394469854,1763614240582,-150.0,0.00017595,2]
[394469855,1763614240591,-254.55994729,0.00017595,2]
[394469856,1763614240601,-500.0,0.00017595,2]
[394469857,1763614240610,-150.0,0.00017595,2]
[394469858,1763614240619,-150.0,0.00017595,2]
[394469859,1763614240628,-152.80453458,0.00017595,2]
[394469860,1763614240638,-150.0,0.00017595,2]
[394469861,1763614240647,-151.25115773,0.00017595,2]
[394469862,1763614240656,-150.0,0.00017595,2]
[394469863,1763614240665,-150.0,0.00017595,2]
[394469864,1763614240674,-150.0,0.00017595,2]
[394469865,1763614240685,-500.0,0.00017595,2]
[394469866,1763614240695,-150.0,0.00017595,2]
[394469867,1763614240704,-500.0,0.00017595,2]
[394469868,1763614240713,-463.0,0.00017595,2]
[394469869,1763614240722,-150.0,0.00017595,2]
[394469870,1763614240731,-500.0,0.00017595,2]
[394469871,1763614240740,-150.0,0.00017595,2]
[394469872,1763614240750,-500.0,0.00017595,2]
[394469873,1763614240760,-666.0,0.00017595,2]
[394469874,1763614240769,-200.0,0.000176,6]
[394469875,1763614240778,-200.0,0.000176,6]
[394469876,1763614240791,-500.0,0.00017622,2]
[394469877,1763614240801,-500.0,0.00017622,2]
[394469878,1763614240810,-500.0,0.00017622,2]
[394469879,1763614240820,-152.03937927,0.00017622,2]
[394469880,1763614240829,-150.0,0.00017622,2]
[394469881,1763614240838,-500.0,0.00017622,2]
[394469882,1763614240848,-151.45128468,0.00017622,2]
[394469883,1763614240857,-500.0,0.00017622,2]
[394469884,1763614240867,-152.24998825,0.00017622,2]
[394469885,1763614240877,-500.0,0.00017622,2]
[394469886,1763614240892,-150.0,0.00017622,2]
[394469887,1763614240901,-150.0,0.00017622,2]
[394469888,1763614240911,-150.0,0.00017622,2]
[394469889,1763614240920,-150.0,0.00017622,2]
[394469890,1763614240930,-166.82890948,0.00017622,2]
[394469891,1763614240939,-150.0,0.00017622,2]
[394469892,1763614240948,-500.0,0.00017622,2]
[394469893,1763614240960,-500.0,0.00017622,2]
[394469894,1763614240969,-463.0,0.00017622,2]
[394469895,1763614240978,-500.0,0.00017622,2]
[394469896,1763614240987,-500.0,0.00017622,2]
[394469897,1763614240996,-666.0,0.00017622,2]
[394469898,1763614241005,-262.0,0.00017643,2]
[394469899,1763614241014,-1464.75324384,0.00017647,2]
[394469900,1763614241023,-11148.82088085,0.00017648,2]
[394469901,1763614241033,-312.00671795,0.00017649,2]
[394469902,1763614241043,-500.0,0.00017649,2]
[394469903,1763614241052,-500.0,0.00017649,2]
[394469904,1763614241062,-5639.6469091,0.0001765,2]
[394469905,1763614241070,-625.16698772,0.0001765,2]
[394469906,1763614241080,-150.0,0.0001765,2]
[394469907,1763614241097,-522.24065324,0.0001765,2]
[394469908,1763614241109,-465.67396154,0.0001765,2]
[394469909,1763614241119,-500.0,0.0001765,2]
[394469910,1763614241128,-153.6525898,0.0001765,2]
[394469911,1763614241137,-150.0,0.0001765,2]
[394469912,1763614241147,-150.0,0.0001765,2]
[394469913,1763614241156,-150.0,0.0001765,2]
[394469914,1763614241166,-203.23059072,0.0001765,2]
[394469915,1763614241175,-500.0,0.0001765,2]
[394469916,1763614241185,-500.0,0.0001765,2]
[394469917,1763614241195,-463.0,0.0001765,2]
[394469918,1763614241204,-558.37697984,0.0001765,2]
[394469919,1763614241214,-500.0,0.0001765,2]
[394469920,1763614241224,-666.0,0.0001765,2]
[394469921,1763614241233,-1665.69,0.00017654,2]
[394469922,1763614241243,-500.0,0.00017676,2]
[394469923,1763614241252,-500.0,0.00017676,2]
[394469924,1763614241262,-156.05141488,0.00017677,2]
[394469925,1763614241271,-280.64385222,0.00017677,2]
[394469926,1763614241280,-150.0,0.00017677,2]
[394469927,1763614241290,-201.00430253,0.00017677,2]
[394469928,1763614241299,-243.69062188,0.00017677,2]
[394469929,1763614241309,-500.0,0.00017677,2]
[394469930,1763614241318,-640.4367874,0.00017677,2]
[394469931,1763614241327,-463.0,0.00017677,2]
[394469932,1763614241336,-500.0,0.00017677,2]
[394469933,1763614241345,-666.0,0.00017677,2]
[394469934,1763614241354,-200.0,0.000177,6]
[394469935,1763614241364,-200.0,0.000177,6]
[394469936,1763614241373,-500.0,0.00017704,2]
[394469937,1763614241382,-246.2459642,0.00017704,2]
[394469938,1763614241392,-181.28870318,0.00017705,2]
[394469939,1763614241401,-500.0,0.00017705,2]
[394469940,1763614241410,-463.0,0.00017705,2]
[394469941,1763614241419,-500.0,0.00017705,2]
[394469942,1763614241430,-666.0,0.00017705,2]
[394469943,1763614241439,-168.0,0.00017728,2]
[394469944,1763614241449,-500.0,0.00017731,2]
[394469945,1763614241458,-500.0,0.00017732,2]
[394469946,1763614241467,-463.0,0.00017732,2]
[394469947,1763614241477,-500.0,0.00017732,2]
[394469948,1763614241486,-666.0,0.00017732,2]
[394469949,1763614241496,-254.29102955,0.00017739,2]
[394469950,1763614241506,-262.0,0.00017746,2]
[394469951,1763614241516,-500.0,0.00017759,2]
[394469952,1763614241526,-518.18578323,0.00017759,2]
[394469953,1763614241535,-463.0,0.00017759,2]
[394469954,1763614241545,-500.0,0.00017759,2]
[394469955,1763614241554,-666.0,0.00017759,2]
[394469956,1763614241565,-11148.82088085,0.00017774,2]
[394469957,1763614241574,-5639.6469091,0.00017775,2]
[394469958,1763614241583,-625.16698772,0.00017775,2]
[394469959,1763614241593,-500.0,0.00017786,2]
[394469960,1763614241602,-463.0,0.00017787,2]
[394469961,1763614241611,-500.0,0.00017787,2]
[394469962,1763614241621,-666.0,0.00017787,2]
[394469963,1763614241630,-166.53672251,0.000178,2]
[394469964,1763614241639,-1011.0,0.000178,2]
[394469965,1763614241650,-200.0,0.000178,6]
[394469966,1763614241660,-200.0,0.000178,6]
[394469967,1763614241670,-500.0,0.00017808,2]
[394469968,1763614241679,-500.0,0.00017813,2]
[394469969,1763614241689,-463.0,0.00017814,2]
[394469970,1763614241698,-500.0,0.00017814,2]
[394469971,1763614241708,-666.0,0.00017814,2]
[394469972,1763614241718,-1813.80728,0.0001782,2]
[394469973,1763614241727,-262.0,0.00017835,2]
[394469974,1763614241737,-500.0,0.00017835,2]
[394469975,1763614241748,-500.0,0.00017841,2]
[394469976,1763614241757,-463.0,0.00017842,2]
[394469977,1763614241767,-500.0,0.00017842,2]
[394469978,1763614241776,-666.0,0.00017842,2]
[394469979,1763614241786,-200.0,0.00017855,2]
[394469980,1763614241795,-200.0,0.00017856,2]
[394469981,1763614241805,-500.0,0.00017863,2]
[394469982,1763614241815,-500.0,0.00017868,2]
[394469983,1763614241824,-463.0,0.00017869,2]
[394469984,1763614241834,-500.0,0.00017869,2]
[394469985,1763614241843,-666.0,0.00017869,2]
[394469986,1763614241853,-500.47789219,0.00017873,2]
[394469987,1763614241862,-160.73608923,0.00017873,2]
[394469988,1763614241872,-500.0,0.00017873,2]
[394469989,1763614241883,-25000.0,0.00017874,3]
[394469990,1763614241893,-262.0,0.00017879,2]
[394469991,1763614241903,-25000.0,0.00017882,3]
[394469992,1763614241912,-262.0,0.00017884,2]
[394469993,1763614241921,-1820.68505313,0.0001789,2]
[394469994,1763614241932,-500.0,0.0001789,2]
[394469995,1763614241941,-500.0,0.0001789,2]
[394469996,1763614241950,-25000.0,0.00017891,3]
[394469997,1763614241961,-276.94790388,0.00017896,2]
[394469998,1763614241971,-463.0,0.00017896,2]
[394469999,1763614241980,-500.0,0.00017896,2]
[394470000,1763614242135,-666.0,0.00017896,2]
[394470001,1763614242145,-710.24,0.00017899,2]
[394470002,1763614242153,-500.0,0.00017899,2]
[394470003,1763614242163,-500.0,0.00017899,2]
[394470004,1763614242172,-14197.4240088,0.000179,2]
[394470005,1763614242180,-25000.0,0.000179,3]
[394470006,1763614242190,-1178.37908504,0.000179,2]
[394470007,1763614242199,-166.5367225,0.000179,2]
[394470008,1763614242208,-11148.82088085,0.000179,2]
[394470009,1763614242217,-5639.6469091,0.000179,2]
[394470010,1763614242226,-200.0,0.000179,6]
[394470011,1763614242235,-625.16698772,0.000179,2]
[394470012,1763614242244,-179.96414648,0.000179,3]
[394470013,1763614242254,-171.68977967,0.000179,2]
[394470014,1763614242263,-27793.82354216,0.000179,2]
[394470015,1763614242273,-295.80418224,0.000179,2]
[394470016,1763614242282,-254.29102955,0.000179,2]
[394470017,1763614242292,-200.0,0.000179,6]
[394470018,1763614242301,-500.37989577,0.000179,2]
[394470019,1763614242310,-10309.04130668,0.000179,2]
[394470020,1763614242319,-4789.0,0.000179,2]
[394470021,1763614242329,-632.5410417,0.00017918,2]
[394470022,1763614242338,-463.0,0.00017924,2]